bitfinex-derivatives/quotes_BTCF0:USTF0_20250509
["timestamp","ask_amount","ask_price","bid_price","bid_amount"]
[1746786486275,0.92843119,103130.0,103120.0,0.01619174]
[1746786486677,1.09843119,103130.0,103120.0,0.01619174]
[1746786488389,0.92843119,103130.0,103120.0,0.01619174]
[1746786489083,0.92843119,103130.0,103120.0,0.04659174]
[1746786489988,1.02713952,103130.0,103120.0,0.04659174]
[1746786490187,1.19713952,103130.0,103120.0,0.01619174]
[1746786490777,1.93552451,103130.0,103080.0,2.2806773]
[1746786490982,0.1940155,103100.0,103090.0,0.0304]
[1746786491182,1.00528769,103100.0,103090.0,0.12736969]
[1746786491485,1.10088769,103100.0,103090.0,0.0304]
[1746786492387,0.93088769,103100.0,103090.0,0.2244343]
[1746786492788,0.93088769,103100.0,103090.0,0.2254343]
[1746786494083,0.8104155,103100.0,103090.0,0.2254343]
[1746786494281,0.4194155,103100.0,103090.0,0.32243221]
[1746786494492,0.4194155,103100.0,103090.0,0.35563221]
[1746786495189,0.4194155,103100.0,103090.0,0.35763221]
[1746786495392,0.4194155,103100.0,103090.0,0.35963221]
[1746786495893,0.51812383,103100.0,103090.0,0.35963221]
[1746786496191,0.51812383,103100.0,103090.0,0.75143221]
[1746786497981,0.63859602,103100.0,103090.0,0.75143221]
[1746786498378,0.99939602,103100.0,103090.0,0.13239791]
[1746786499093,1.00428602,103100.0,103090.0,0.12939791]
[1746786499295,1.00428602,103100.0,103090.0,0.13039791]
[1746786499488,1.00428602,103100.0,103090.0,0.12839791]
[1746786499788,1.00428602,103100.0,103090.0,0.32243221]
[1746786500289,0.64348602,103100.0,103090.0,0.32243221]
[1746786500589,0.52301383,103100.0,103090.0,0.71403221]
[1746786500789,0.4243055,103100.0,103090.0,0.71403221]
[1746786501091,0.16489,103100.0,103090.0,1.67644445]
[1746786501390,0.00489,103100.0,103090.0,1.77344045]
[1746786501597,0.00489,103100.0,103090.0,3.27344045]
[1746786501989,0.09870833,103110.0,103100.0,0.1940155]
[1746786502188,0.09870833,103110.0,103100.0,1.30142755]
[1746786502384,0.09870833,103110.0,103100.0,1.39841554]
[1746786502585,0.09870833,103110.0,103100.0,1.49541345]
[1746786503488,0.09870833,103110.0,103100.0,1.02868564]
[1746786503691,0.09870833,103110.0,103100.0,1.224641]
[1746786503890,0.09870833,103110.0,103100.0,1.47321345]
[1746786504492,0.3605411,103120.0,103110.0,0.1939967]
[1746786504695,0.3120461,103120.0,103110.0,0.6030767]
[1746786505199,0.4720461,103120.0,103110.0,2.2000558]
[1746786505800,0.4720461,103120.0,103110.0,2.2010558]
[1746786506302,0.4671761,103120.0,103110.0,2.2010558]
[1746786506905,0.4671761,103120.0,103110.0,2.2550558]
[1746786507204,0.4671761,103120.0,103110.0,2.1150558]
[1746786507701,0.4671761,103120.0,103110.0,2.1250558]
[1746786508298,0.4671761,103120.0,103110.0,1.7810591]
[1746786508600,0.94844829,103120.0,103110.0,0.0979791]
[1746786508990,0.94844829,103120.0,103110.0,0.2919758]
[1746786510903,0.8279761,103120.0,103110.0,0.2919758]
[1746786511093,0.94844829,103120.0,103110.0,0.2919758]
[1746786511297,0.94844829,103120.0,103110.0,0.3229758]
[1746786511498,0.8279761,103120.0,103110.0,0.3229758]
[1746786511698,0.8279761,103120.0,103110.0,0.5083758]
[1746786512007,0.8279761,103120.0,103110.0,0.3229758]
[1746786512509,0.94844829,103120.0,103110.0,0.3229758]
[1746786514698,0.8279761,103120.0,103110.0,0.3229758]
[1746786517997,0.8279761,103120.0,103110.0,0.3429758]
[1746786519207,0.8279761,103120.0,103110.0,0.1179791]
[1746786519411,0.94844829,103120.0,103110.0,0.3119758]
[1746786520010,1.00844829,103120.0,103110.0,0.2919758]
[1746786520211,0.8279761,103120.0,103110.0,0.3244758]
[1746786520912,1.13844829,103120.0,103110.0,0.0979791]
[1746786521100,0.1939967,103110.0,103100.0,6e-08]
[1746786521411,0.1940343,103090.0,103080.0,0.0039773]
[1746786521720,1.22610649,103090.0,103080.0,0.1009564]
[1746786521902,1.25870649,103090.0,103080.0,0.1009564]
[1746786522102,1.41870649,103090.0,103080.0,0.0039773]
[1746786522309,1.41870649,103090.0,103080.0,0.1980304]
[1746786522310,1.27870649,103090.0,103080.0,0.1980304]
[1746786522612,1.42870649,103090.0,103080.0,0.1980304]
[1746786522812,1.42870649,103090.0,103080.0,0.2000304]
[1746786523411,1.42870649,103090.0,103080.0,0.0059773]
[1746786523999,1.42870649,103090.0,103080.0,0.2000304]
[1746786524204,1.49340649,103090.0,103080.0,0.2020304]
[1746786525411,1.38340649,103090.0,103080.0,0.2020304]
[1746786527718,1.38340649,103090.0,103080.0,0.0079773]
[1746786529018,1.38340649,103090.0,103080.0,0.2020304]
[1746786530215,1.38340649,103090.0,103080.0,0.0079773]
[1746786537121,1.29340649,103090.0,103080.0,0.0079773]
[1746786537322,0.1940719,103070.0,103060.0,0.0157752]
[1746786537530,1.10614409,103070.0,103060.0,0.0157752]
[1746786537725,1.19854409,103070.0,103060.0,0.11278252]
[1746786538225,1.35854409,103070.0,103060.0,0.11278252]
[1746786538418,1.35854409,103070.0,103060.0,0.11778252]
[1746786538617,1.47854409,103070.0,103060.0,0.11778252]
[1746786539419,1.47854409,103070.0,103060.0,0.12278252]
[1746786539725,1.28854409,103070.0,103060.0,0.12278252]
[1746786539925,1.36854409,103070.0,103060.0,0.12278252]
[1746786540819,1.2480719,103070.0,103060.0,0.12278252]
[1746786541023,1.36854409,103070.0,103060.0,0.12278252]
[1746786541322,0.64694409,103070.0,103060.0,0.12278252]
[1746786541525,1.36854409,103070.0,103060.0,0.12278252]
[1746786541730,1.28854409,103070.0,103060.0,0.12132712]
[1746786541923,1.3280719,103070.0,103060.0,0.12132712]
[1746786542120,1.44854409,103070.0,103060.0,0.12132712]
[1746786542730,1.3280719,103070.0,103060.0,0.12132712]
[1746786542933,1.44854409,103070.0,103060.0,0.12132712]
[1746786543324,1.44854409,103070.0,103060.0,1e-07]
[1746786543523,1.46854409,103070.0,103060.0,1e-07]
[1746786543831,1.46854409,103070.0,103060.0,0.01443562]
[1746786544538,1.47581409,103070.0,103060.0,0.01443562]
[1746786545026,1.29581409,103070.0,103060.0,0.01443562]
[1746786545230,1.2353419,103070.0,103060.0,0.01443562]
[1746786545422,1.2353419,103070.0,103060.0,0.42555256]
[1746786545423,1.1753419,103070.0,103060.0,0.42555256]
[1746786545623,1.29581409,103070.0,103060.0,0.36935256]
[1746786545923,1.1442419,103070.0,103060.0,0.38935256]
[1746786546130,0.2626419,103070.0,103060.0,0.90445256]
[1746786546326,0.06857,103070.0,103060.0,0.90445256]
[1746786546524,0.2626419,103070.0,103060.0,1.02492475]
[1746786547135,0.00727,103070.0,103060.0,1.37195275]
[1746786547831,0.00727,103070.0,103060.0,1.48275275]
[1746786548323,0.00727,103070.0,103060.0,1.36228056]
[1746786548520,0.00727,103070.0,103060.0,1.73275275]
[1746786550321,0.00487,103080.0,103070.0,0.1940719]
[1746786550525,0.00487,103080.0,103070.0,1.37776009]
[1746786550725,0.45404773,103100.0,103090.0,0.1940343]
[1746786550935,0.45404773,103100.0,103090.0,0.3521143]
[1746786551133,0.45404773,103100.0,103090.0,0.3975143]
[1746786551328,0.61404773,103100.0,103090.0,0.3975143]
[1746786551530,0.51703513,103100.0,103090.0,0.9549844]
[1746786551726,0.4183155,103100.0,103090.0,1.1249844]
[1746786552126,0.16,103100.0,103090.0,1.2219804]
[1746786552432,0.3540155,103100.0,103090.0,1.2219804]
[1746786553224,0.3570155,103100.0,103090.0,1.2219804]
[1746786553431,0.163,103100.0,103090.0,1.2219804]
[1746786553836,0.161,103100.0,103090.0,1.2219804]
[1746786554343,0.00587,103100.0,103090.0,1.2219804]
[1746786555131,0.16587,103100.0,103090.0,1.2219804]
[1746786555434,0.16587,103100.0,103090.0,1.2239804]
[1746786555634,0.16487,103100.0,103090.0,1.2249804]
[1746786557033,0.16487,103100.0,103090.0,1.6408804]
[1746786557231,0.00487,103100.0,103090.0,2.0016804]
[1746786559533,0.07137,103110.0,103100.0,0.1940155]
[1746786559728,0.07137,103110.0,103100.0,0.94308769]
[1746786560226,0.03907,103110.0,103100.0,1.0400856]
[1746786560632,0.03907,103110.0,103100.0,1.4559856]
[1746786560931,0.00827,103110.0,103100.0,1.4559856]
[1746786561137,0.00827,103110.0,103100.0,1.55297359]
[1746786561733,0.00827,103110.0,103100.0,1.91377359]
[1746786562232,0.16827,103110.0,103100.0,1.91377359]
[1746786562739,0.16827,103110.0,103100.0,1.92328487]
[1746786563131,0.00827,103110.0,103100.0,1.92328487]
[1746786565144,0.00827,103110.0,103100.0,3.42328487]
[1746786565542,0.00827,103110.0,103100.0,3.52328487]
[1746786566234,0.00827,103110.0,103100.0,3.42328487]
[1746786566428,0.00827,103110.0,103100.0,3.52328487]
[1746786566635,0.00827,103110.0,103100.0,3.42328487]
[1746786567340,1e-08,103110.0,103100.0,3.64375706]
[1746786567541,1e-08,103110.0,103100.0,3.52328487]
[1746786568235,1e-08,103110.0,103100.0,3.64375706]
[1746786569939,1e-08,103110.0,103100.0,2.14375706]
[1746786570143,0.004,103140.0,103130.0,0.193959]
[1746786570445,0.0112699,103140.0,103130.0,3.24877119]
[1746786571041,0.0112699,103140.0,103130.0,3.34575969]
[1746786571242,0.1712699,103140.0,103130.0,3.34575969]
[1746786571538,0.2398699,103140.0,103130.0,3.39305969]
[1746786571939,0.2448699,103140.0,103130.0,3.39305969]
[1746786572247,0.2408699,103140.0,103130.0,3.40784482]
[1746786572437,0.2378699,103140.0,103130.0,3.40784482]
[1746786573245,0.2378699,103140.0,103130.0,3.39264482]
[1746786574250,0.2378699,103140.0,103130.0,3.27217263]
[1746786574437,0.2378699,103140.0,103130.0,3.39264482]
[1746786576650,0.2306,103140.0,103130.0,3.39264482]
[1746786576850,0.2306,103140.0,103130.0,3.50480482]
[1746786577744,1e-08,103140.0,103130.0,3.62527701]
[1746786577949,1e-08,103140.0,103130.0,3.50480482]
[1746786578148,0.03310001,103140.0,103130.0,3.50480482]
[1746786578655,0.16727,103150.0,103140.0,0.1939402]
[1746786578844,0.1745399,103150.0,103140.0,1.44358458]
[1746786579351,0.1745399,103150.0,103140.0,1.54054487]
[1746786580049,0.1785399,103150.0,103140.0,1.54054487]
[1746786580650,0.1785399,103150.0,103140.0,1.64054487]
[1746786580951,0.1815399,103150.0,103140.0,3.55644487]
[1746786581349,0.2140399,103150.0,103140.0,3.55644487]
[1746786581551,0.2140399,103150.0,103140.0,3.45644487]
[1746786581860,0.2070399,103150.0,103140.0,3.45844487]
[1746786582049,0.3975399,103150.0,103140.0,3.45844487]
[1746786582254,0.2375399,103150.0,103140.0,3.55844487]
[1746786582654,0.2375399,103150.0,103140.0,3.45844487]
[1746786582851,0.23027,103150.0,103140.0,3.45844487]
[1746786583058,0.2375399,103150.0,103140.0,3.45844487]
[1746786583956,0.23027,103150.0,103140.0,3.65539687]
[1746786584347,0.23027,103150.0,103140.0,3.55539687]
[1746786584957,0.2375399,103150.0,103140.0,3.23692049]
[1746786585259,0.4314613,103150.0,103140.0,3.13739268]
[1746786585444,0.7922613,103150.0,103140.0,2.55880049]
[1746786585643,0.7922613,103150.0,103140.0,0.79880049]
[1746786585848,0.91273349,103150.0,103140.0,0.51486029]
[1746786586148,0.91273349,103150.0,103140.0,2.30608049]
[1746786586354,1.16273349,103150.0,103140.0,1.69624029]
[1746786586554,1.16273349,103150.0,103140.0,1.89018049]
[1746786586753,1.16273349,103150.0,103140.0,0.09896029]
[1746786586959,0.1939402,103140.0,103130.0,0.45311538]
[1746786587158,0.7530101,103140.0,103130.0,0.45311538]
[1746786587457,0.7530101,103140.0,103130.0,0.55007567]
[1746786587956,0.7540101,103140.0,103130.0,0.40267742]
[1746786588563,0.7560101,103140.0,103130.0,0.42267742]
[1746786588951,0.5620699,103140.0,103130.0,0.42267742]
[1746786589152,0.5620699,103140.0,103130.0,1.11314961]
[1746786589363,0.7560101,103140.0,103130.0,0.87314961]
[1746786589553,0.5620699,103140.0,103130.0,0.87314961]
[1746786590660,0.6234699,103140.0,103130.0,0.75267742]
[1746786591064,0.2626699,103140.0,103130.0,0.75267742]
[1746786591260,0.6234699,103140.0,103130.0,0.75267742]
[1746786591660,0.8154101,103140.0,103130.0,0.75267742]
[1746786593364,0.6214699,103140.0,103130.0,0.92267742]
[1746786594255,0.6214699,103140.0,103130.0,1.04314961]
[1746786594860,0.2606699,103140.0,103130.0,1.49834961]
[1746786595260,0.2606699,103140.0,103130.0,1.13754961]
[1746786595858,0.2606699,103140.0,103130.0,1.55544961]
[1746786596055,0.2606699,103140.0,103130.0,1.49134961]
[1746786596259,0.6214699,103140.0,103130.0,1.46104961]
[1746786597167,0.8154101,103140.0,103130.0,1.46304961]
[1746786597863,0.6214699,103140.0,103130.0,1.46304961]
[1746786598066,0.6214699,103140.0,103130.0,1.49604961]
[1746786598457,0.6214699,103140.0,103130.0,1.52704961]
[1746786599367,0.6214699,103140.0,103130.0,1.52504961]
[1746786599569,0.8154101,103140.0,103130.0,1.52504961]
[1746786599866,0.8154101,103140.0,103130.0,1.45904961]
[1746786600071,0.8154101,103140.0,103130.0,1.55604961]
[1746786600370,0.8154101,103140.0,103130.0,1.23604961]
[1746786600669,0.8154101,103140.0,103130.0,0.70764542]
[1746786600961,0.8154101,103140.0,103130.0,0.82160442]
[1746786601166,0.8154101,103140.0,103130.0,0.72160442]
[1746786601869,0.8154101,103140.0,103130.0,0.30570442]
[1746786602564,0.93588229,103140.0,103130.0,0.11174542]
[1746786602767,0.93788229,103140.0,103130.0,0.11174542]
[1746786603267,0.93888229,103140.0,103130.0,0.11174542]
[1746786603861,1.33631448,103140.0,103130.0,0.11174542]
[1746786604165,1.21584229,103140.0,103130.0,0.11174542]
[1746786604566,1.58631448,103140.0,103130.0,0.01478513]
[1746786604764,0.193959,103130.0,103120.0,0.1939773]
[1746786604969,0.640059,103130.0,103120.0,0.1939773]
[1746786605267,0.8073289,103130.0,103120.0,0.1939773]
[1746786605666,0.8073289,103130.0,103120.0,0.29094699]
[1746786605867,0.5933699,103130.0,103120.0,0.42141918]
[1746786606060,0.5933699,103130.0,103120.0,0.97541918]
[1746786606367,0.1925,103130.0,103120.0,1.36861918]
[1746786606867,0.1925,103130.0,103120.0,1.78451918]
[1746786607272,0.0325,103130.0,103120.0,1.78451918]
[1746786607463,0.0325,103130.0,103120.0,1.78651918]
[1746786607866,0.0325,103130.0,103120.0,1.80099281]
[1746786608271,0.0325,103130.0,103120.0,1.80299281]
[1746786609173,0.1925,103130.0,103120.0,1.80299281]
[1746786609674,0.1925,103130.0,103120.0,1.81012566]
[1746786610671,0.1925,103130.0,103120.0,3.31012566]
[1746786610672,0.2228,103130.0,103120.0,3.31012566]
[1746786611174,0.2300699,103130.0,103120.0,3.31012566]
[1746786611371,0.2300699,103130.0,103120.0,3.40692566]
[1746786611883,0.2300699,103130.0,103120.0,3.31014841]
[1746786612069,0.7848289,103130.0,103120.0,2.63563622]
[1746786612572,0.8175289,103130.0,103120.0,2.63563622]
[1746786612765,0.8175289,103130.0,103120.0,2.62848062]
[1746786614072,0.93800109,103130.0,103120.0,0.11344332]
[1746786614372,0.8175289,103130.0,103120.0,0.30542112]
[1746786615373,0.8195289,103130.0,103120.0,0.30542112]
[1746786615766,0.8195289,103130.0,103120.0,0.57142112]
[1746786615975,0.8205289,103130.0,103120.0,0.57142112]
[1746786616273,0.8205289,103130.0,103120.0,0.40837876]
[1746786616470,0.8205289,103130.0,103120.0,0.59837876]
[1746786616775,0.6265699,103130.0,103120.0,1.05885095]
[1746786616961,0.8205289,103130.0,103120.0,1.05885095]
[1746786617573,0.8205289,103130.0,103120.0,0.93837876]
[1746786617871,0.8205289,103130.0,103120.0,1.05885095]
[1746786618073,0.4597289,103130.0,103120.0,1.05885095]
[1746786618267,0.4577289,103130.0,103120.0,0.71837876]
[1746786618472,0.8175289,103130.0,103120.0,0.71837876]
[1746786618873,0.4567289,103130.0,103120.0,0.97837876]
[1746786619871,0.4567289,103130.0,103120.0,1.09885095]
[1746786620168,0.4567289,103130.0,103120.0,0.97837876]
[1746786620369,0.4567289,103130.0,103120.0,1.09885095]
[1746786620572,0.2627699,103130.0,103120.0,1.09885095]
[1746786621070,0.8175289,103130.0,103120.0,0.85189331]
[1746786621274,0.8175289,103130.0,103120.0,0.85937391]
[1746786621671,0.6235699,103130.0,103120.0,0.71937391]
[1746786621970,0.5533,103130.0,103120.0,1.09937391]
[1746786622771,0.1925,103130.0,103120.0,1.46017391]
[1746786623077,0.16,103130.0,103120.0,1.46017391]
[1746786623377,0.16,103130.0,103120.0,1.46217391]
[1746786623678,0.16,103130.0,103120.0,1.46224226]
[1746786623872,0.16,103130.0,103120.0,2.96224226]
[1746786624268,0.16,103130.0,103120.0,2.96424226]
[1746786624473,0.6674036,103150.0,103120.0,2.91875476]
[1746786624474,0.3608,103150.0,103120.0,2.91875476]
[1746786624776,0.3936,103150.0,103140.0,0.31441239]
[1746786624976,0.3936,103150.0,103140.0,0.98848134]
[1746786625169,0.5846,103150.0,103140.0,1.08438134]
[1746786625369,0.5846,103150.0,103140.0,1.18135103]
[1746786625970,0.5876,103150.0,103140.0,1.59725103]
[1746786626971,0.5566,103150.0,103140.0,1.59725103]
[1746786627277,0.163,103150.0,103140.0,2.07896197]
[1746786627473,0.161,103150.0,103140.0,2.07896197]
[1746786628581,0.16,103150.0,103140.0,2.07896197]
[1746786628980,0.16727,103150.0,103140.0,2.07896197]
[1746786629178,0.00727,103150.0,103140.0,1.95848978]
[1746786629375,0.00727,103150.0,103140.0,3.57896197]
[1746786629778,0.00727,103150.0,103140.0,3.67896197]
[1746786629983,0.00727,103150.0,103140.0,3.57896197]
[1746786630475,0.00727,103150.0,103140.0,3.67591397]
[1746786631581,0.00727,103150.0,103140.0,3.57896197]
[1746786631977,0.00727,103150.0,103140.0,3.45848978]
[1746786632181,0.16727,103150.0,103140.0,3.45848978]
[1746786632686,0.19817,103150.0,103140.0,3.45848978]
[1746786632885,0.19817,103150.0,103140.0,3.60588803]
[1746786634284,0.19817,103150.0,103140.0,3.60573198]
[1746786634480,0.19817,103150.0,103140.0,3.72620417]
[1746786636171,0.19817,103150.0,103140.0,3.57880592]
[1746786636377,0.19817,103150.0,103140.0,3.48228592]
[1746786636587,0.19817,103150.0,103140.0,3.36181373]
[1746786636784,0.19817,103150.0,103140.0,1.05150134]
[1746786636785,0.3920914,103150.0,103140.0,1.05150134]
[1746786637086,1.16373349,103150.0,103140.0,0.10480134]
[1746786637783,0.7932613,103150.0,103140.0,0.29874154]
[1746786637986,0.7932613,103150.0,103140.0,0.48874154]
[1746786638187,0.7932613,103150.0,103140.0,0.29874154]
[1746786638373,0.7932613,103150.0,103140.0,0.10480134]
[1746786638574,0.91373349,103150.0,103140.0,0.10480134]
[1746786638778,0.91373349,103150.0,103140.0,0.09696969]
[1746786638975,0.91373349,103150.0,103140.0,0.29823474]
[1746786639175,0.7952613,103150.0,103140.0,0.36823474]
[1746786639385,0.7952613,103150.0,103140.0,0.42823474]
[1746786639585,0.7982613,103150.0,103140.0,0.42823474]
[1746786640891,0.6023399,103150.0,103140.0,0.56823474]
[1746786641185,0.6023399,103150.0,103140.0,0.51313474]
[1746786641391,0.6023399,103150.0,103140.0,0.76400693]
[1746786641585,0.6023399,103150.0,103140.0,1.07400693]
[1746786641985,0.7952613,103150.0,103140.0,0.56823474]
[1746786642189,0.7952613,103150.0,103140.0,0.46823474]
[1746786642389,0.7932613,103150.0,103140.0,0.46823474]
[1746786642799,0.7932613,103150.0,103140.0,1.96823474]
[1746786643091,0.7932613,103150.0,103140.0,1.79823474]
[1746786643294,0.7932613,103150.0,103140.0,0.29823474]
[1746786643795,0.91373349,103150.0,103140.0,0.10429454]
[1746786644092,0.8032613,103150.0,103140.0,0.10429454]
[1746786644295,0.92373349,103150.0,103140.0,0.29823474]
[1746786644595,0.8032613,103150.0,103140.0,0.29823474]
[1746786644786,0.92373349,103150.0,103140.0,0.29823474]
[1746786644991,0.92473349,103150.0,103140.0,0.29823474]
[1746786645596,0.92373349,103150.0,103140.0,0.10429454]
[1746786645897,0.92973349,103150.0,103140.0,0.29823474]
[1746786646295,0.92673349,103150.0,103140.0,0.29823474]
[1746786646597,0.92973349,103150.0,103140.0,0.29823474]
[1746786648094,0.7992613,103150.0,103140.0,0.45820451]
[1746786648292,0.7992613,103150.0,103140.0,0.52820451]
[1746786649293,0.59807,103150.0,103140.0,0.9486767]
[1746786649491,0.7889914,103150.0,103140.0,0.6842767]
[1746786649793,0.59707,103150.0,103140.0,1.0642767]
[1746786649999,0.59707,103150.0,103140.0,2.5642767]
[1746786650587,0.56097,103150.0,103140.0,2.5642767]
[1746786650897,0.56197,103150.0,103140.0,2.5642767]
[1746786651300,0.20117,103150.0,103140.0,2.9250767]
[1746786651494,0.20017,103150.0,103140.0,3.04554889]
[1746786651895,0.20017,103150.0,103140.0,3.46144889]
[1746786652099,0.04017,103150.0,103140.0,3.46144889]
[1746786652696,0.04017,103150.0,103140.0,3.3409767]
[1746786652999,0.03817,103150.0,103140.0,3.46144889]
[1746786653701,0.03817,103150.0,103140.0,3.3409767]
[1746786653901,0.03817,103150.0,103140.0,3.46144889]
[1746786654201,0.03817,103150.0,103140.0,3.22050451]
[1746786654496,0.03817,103150.0,103140.0,3.3409767]
[1746786654701,0.00727,103150.0,103140.0,3.46144889]
[1746786655087,0.00727,103150.0,103140.0,3.46221468]
[1746786656402,0.03807,103150.0,103140.0,3.55817468]
[1746786656597,0.03807,103150.0,103140.0,3.43770249]
[1746786658202,0.19807,103150.0,103140.0,3.43770249]
[1746786658402,0.19807,103150.0,103140.0,3.3172303]
[1746786658604,0.19807,103150.0,103140.0,3.43770249]
[1746786659606,0.19807,103150.0,103140.0,3.07686249]
[1746786659901,0.19807,103150.0,103140.0,3.43766249]
[1746786660094,0.2372399,103150.0,103140.0,3.3171903]
[1746786660602,0.4311613,103150.0,103140.0,2.9612703]
[1746786660805,0.4311613,103150.0,103140.0,3.0571503]
[1746786660806,0.4635613,103150.0,103140.0,3.0571503]
[1746786660996,0.2696399,103150.0,103140.0,3.2071503]
[1746786662309,0.2696399,103150.0,103140.0,2.8463503]
[1746786662499,0.8243613,103150.0,103140.0,2.7363503]
[1746786662696,0.6304399,103150.0,103140.0,2.8463503]
[1746786662900,0.5980399,103150.0,103140.0,2.96682249]
[1746786663905,0.2053399,103150.0,103140.0,3.44809468]
[1746786664109,0.0453399,103150.0,103140.0,3.32762249]
[1746786664421,0.0453399,103150.0,103140.0,2.96682249]
[1746786664809,0.0758399,103150.0,103140.0,2.96682249]
[1746786665009,0.0758399,103150.0,103140.0,2.55092249]
[1746786665206,0.2053399,103150.0,103140.0,3.03219468]
[1746786665406,0.2053399,103150.0,103140.0,2.91172249]
[1746786665808,0.2053399,103150.0,103140.0,2.92662365]
[1746786666209,0.2053399,103150.0,103140.0,2.56582365]
[1746786666408,0.2053399,103150.0,103140.0,2.92662365]
[1746786668009,0.2053399,103150.0,103140.0,3.34252365]
[1746786669216,0.2053399,103150.0,103140.0,3.22205146]
[1746786669416,0.2053399,103150.0,103140.0,3.34252365]
[1746786670009,0.2053399,103150.0,103140.0,2.98172365]
[1746786670210,0.2053399,103150.0,103140.0,2.98289123]
[1746786670417,0.2053399,103150.0,103140.0,3.34369123]
[1746786671108,0.2053399,103150.0,103140.0,2.98289123]
[1746786671314,0.2053399,103150.0,103140.0,3.34369123]
[1746786671616,0.2053399,103150.0,103140.0,2.98289123]
[1746786672012,0.2053399,103150.0,103140.0,3.3437664]
[1746786672604,0.2053399,103150.0,103140.0,3.22329421]
[1746786672914,0.2053399,103150.0,103140.0,3.3437664]
[1746786675507,0.2053399,103150.0,103140.0,3.34320997]
[1746786676111,0.2053399,103150.0,103140.0,2.98240988]
[1746786676319,0.2053399,103150.0,103140.0,3.34320988]
[1746786676805,0.2360399,103150.0,103140.0,2.98240988]
[1746786677011,0.2360399,103150.0,103140.0,3.34320988]
[1746786679316,0.2360399,103150.0,103140.0,2.86193769]
[1746786679620,0.2360399,103150.0,103140.0,3.34320988]
[1746786679815,0.2360399,103150.0,103140.0,3.32830872]
[1746786680010,0.2360399,103150.0,103140.0,2.91240872]
[1746786680708,0.4299613,103150.0,103140.0,2.33525653]
[1746786680912,0.8227613,103150.0,103140.0,2.26898506]
[1746786681116,0.6288399,103150.0,103140.0,2.36458506]
[1746786681513,0.95323349,103150.0,103140.0,1.79898506]
[1746786681722,0.94323349,103150.0,103140.0,0.10504486]
[1746786682017,0.94323349,103150.0,103140.0,0.29898506]
[1746786682218,0.94323349,103150.0,103140.0,0.44638331]
[1746786682419,0.8227613,103150.0,103140.0,0.44638331]
[1746786682616,0.94323349,103150.0,103140.0,0.44612122]
[1746786683016,0.94623349,103150.0,103140.0,0.44612122]
[1746786683219,0.94623349,103150.0,103140.0,0.25218102]
[1746786683516,0.94623349,103150.0,103140.0,0.44612122]
[1746786684618,0.94923349,103150.0,103140.0,0.25218102]
[1746786684822,0.94923349,103150.0,103140.0,0.44612122]
[1746786685320,0.94923349,103150.0,103140.0,0.29872297]
[1746786686928,0.98923349,103150.0,103140.0,0.29872297]
[1746786688122,0.8687613,103150.0,103140.0,0.29872297]
[1746786688723,0.8687613,103150.0,103140.0,0.3134766]
[1746786689729,0.8657613,103150.0,103140.0,0.31365365]
[1746786690023,0.8267613,103150.0,103140.0,0.31365365]
[1746786691226,0.8257613,103150.0,103140.0,0.37515365]
[1746786691424,0.8257613,103150.0,103140.0,0.34505365]
[1746786691633,0.56187,103150.0,103140.0,0.34505365]
[1746786691818,0.20107,103150.0,103140.0,1.05087221]
[1746786692732,0.19907,103150.0,103140.0,1.05087221]
[1746786693030,0.19807,103150.0,103140.0,1.05087221]
[1746786695131,0.19807,103150.0,103140.0,1.14623221]
[1746786695327,0.16727,103150.0,103140.0,1.6826044]
[1746786695527,0.16727,103150.0,103140.0,2.0434044]
[1746786696430,0.16727,103150.0,103140.0,3.5434044]
[1746786697133,0.00727,103150.0,103140.0,3.6434044]
[1746786697837,0.3949,103170.0,103160.0,0.1939026]
[1746786698032,0.4021699,103170.0,103160.0,0.88236492]
[1746786698336,0.5621699,103170.0,103160.0,0.94276492]
[1746786698634,0.5621699,103170.0,103160.0,1.03971581]
[1746786698830,0.5651699,103170.0,103160.0,1.0394897]
[1746786699028,0.5681699,103170.0,103160.0,1.0394897]
[1746786699226,0.5985699,103170.0,103160.0,1.0694897]
[1746786699627,0.5985699,103170.0,103160.0,1.07897038]
[1746786700535,0.5985699,103170.0,103160.0,1.07881098]
[1746786701638,0.7924537,103170.0,103160.0,0.69833879]
[1746786701940,0.91292589,103170.0,103160.0,0.10455551]
[1746786702132,1.20985789,103170.0,103160.0,0.10455551]
[1746786703133,1.06985789,103170.0,103160.0,0.10455551]
[1746786703740,1.20985789,103170.0,103160.0,0.10455551]
[1746786704733,1.20985789,103170.0,103160.0,0.29845811]
[1746786706631,1.05985789,103170.0,103160.0,0.29845811]
[1746786707540,0.96292589,103170.0,103160.0,0.29845811]
[1746786708239,0.8424537,103170.0,103160.0,0.29845811]
[1746786708538,1.09292589,103170.0,103160.0,0.29845811]
[1746786709538,1.09292589,103170.0,103160.0,0.29851945]
[1746786709741,0.8424537,103170.0,103160.0,0.29851945]
[1746786710046,1.11292589,103170.0,103160.0,0.10461685]
[1746786710337,0.91292589,103170.0,103160.0,0.10461685]
[1746786714241,0.7924537,103170.0,103160.0,0.10461685]
[1746786714441,0.91292589,103170.0,103160.0,0.10461685]
[1746786716045,0.7924537,103170.0,103160.0,0.10461685]
[1746786716245,0.91292589,103170.0,103160.0,0.10461685]
[1746786717243,1.09292589,103170.0,103160.0,0.10461685]
[1746786718344,1.09292589,103170.0,103160.0,0.10459869]
[1746786718644,1.21339808,103170.0,103160.0,0.10459869]
[1746786718843,0.1939214,103150.0,103140.0,0.0643]
[1746786719043,0.193959,103130.0,103120.0,0.16187188]
[1746786719238,1.22330109,103130.0,103120.0,0.16187188]
[1746786719445,1.30800109,103130.0,103120.0,0.17660182]
[1746786719733,1.40496909,103130.0,103120.0,0.27353391]
[1746786720247,1.56496909,103130.0,103120.0,0.25880397]
[1746786720443,1.56496909,103130.0,103120.0,0.16187188]
[1746786720640,1.90496909,103130.0,103120.0,0.16187188]
[1746786721236,1.56496909,103130.0,103120.0,0.16187188]
[1746786721434,0.1939778,103120.0,103110.0,0.196531]
[1746786721641,0.95561989,103120.0,103110.0,0.21075786]
[1746786721947,0.95561989,103120.0,103110.0,0.30772755]
[1746786722159,1.12550734,103120.0,103110.0,0.30772755]
[1746786722449,1.12550734,103120.0,103110.0,0.21075786]
[1746786722639,1.34295953,103120.0,103110.0,0.196531]
[1746786723236,0.1940155,103100.0,103090.0,0.2910412]
[1746786723438,1.03608769,103100.0,103090.0,0.4130412]
[1746786723639,1.09738769,103100.0,103090.0,0.4130412]
[1746786724247,1.25738769,103100.0,103090.0,0.3530412]
[1746786724544,1.25738769,103100.0,103090.0,0.40153061]
[1746786724742,1.1369155,103100.0,103090.0,0.40153061]
[1746786724951,1.25738769,103100.0,103090.0,0.40453061]
[1746786725140,1.1369155,103100.0,103090.0,0.40453061]
[1746786725448,1.1369155,103100.0,103090.0,0.35602211]
[1746786725651,1.1369155,103100.0,103090.0,0.37074075]
[1746786725849,1.1369155,103100.0,103090.0,0.37374075]
[1746786726650,1.1369155,103100.0,103090.0,0.38358015]
[1746786727352,1.1369155,103100.0,103090.0,0.17971655]